bitfinex/quotes_SOLUSD_20240726
["timestamp","ask_amount","ask_price","bid_price","bid_amount"]
[1722027526795,13.09,181.84,181.81,5.5001]
[1722027527701,13.09,181.85,181.79,13.09]
[1722027527895,13.09,181.85,181.82,5.4996]
[1722027528924,45.0,181.84,181.82,5.4996]
[1722027530106,45.0,181.84,181.81,19.2502]
[1722027530824,5.4976,181.9,181.85,5.4987]
[1722027531003,13.09,181.89,181.85,5.4987]
[1722027531625,13.09,181.89,181.83,26.8386]
[1722027531626,13.09,181.88,181.83,13.7486]
[1722027531805,13.09,181.88,181.84,5.4993]
[1722027533602,5.4978,181.89,181.84,5.4993]
[1722027533931,1.10194973,181.91,181.86,5.4986]
[1722027533932,18.5875,181.9,181.86,5.4986]
[1722027534104,59.19194973,181.89,181.85,19.2458]
[1722027534305,58.09,181.89,181.85,19.2458]
[1722027534729,13.09,181.87,181.82,13.7498]
[1722027534905,13.09,181.87,181.84,5.4991]
[1722027535111,58.09,181.89,181.85,5.4987]
[1722027536011,63.5878,181.89,181.85,5.4987]
[1722027538933,63.5878,181.89,181.84,32.3371]
[1722027543436,63.5878,181.89,181.84,19.2471]
[1722027543733,50.4978,181.89,181.84,19.2471]
[1722027543917,13.09,181.88,181.84,19.2471]
[1722027544101,18.5881,181.88,181.84,19.2471]
[1722027545431,13.09,181.88,181.84,19.2471]
[1722027546022,13.09,181.88,181.85,5.499]
[1722027550532,13.09,181.86,181.8,26.8406]
[1722027551337,13.09,181.86,181.83,5.4995]
[1722027553107,5.4981,181.89,181.82,26.8392]
[1722027553313,58.09,181.88,181.85,5.4988]
[1722027554720,58.09,181.88,181.86,5.4987]
[1722027555945,58.09,181.88,181.85,5.4989]
[1722027556444,14.84194973,181.95,181.86,5.4986]
[1722027556739,13.09,181.89,181.86,5.4986]
[1722027557343,1.10194973,181.93,181.86,5.4986]
[1722027557539,13.09,181.89,181.86,5.4986]
[1722027558626,13.09,181.88,181.85,5.4989]
[1722027566129,13.09,181.86,181.81,13.7505]
[1722027566455,58.09,181.85,181.81,13.7505]
[1722027566627,58.09,181.85,181.82,5.4998]
[1722027567246,58.09,181.85,181.81,13.7505]
[1722027567428,58.09,181.85,181.81,19.2507]
[1722027567429,63.5891,181.85,181.81,19.2507]
[1722027567632,58.09,181.85,181.81,19.2507]
[1722027568238,58.09,181.85,181.82,5.4998]
[1722027571940,58.09,181.85,181.83,5.4995]
[1722027572635,2.16484245,181.91,181.83,13.7486]
[1722027572856,13.09,181.87,181.83,13.7486]
[1722027573733,13.09,181.86,181.83,13.7486]
[1722027573931,13.09,181.85,181.83,13.7486]
[1722027574435,13.09,181.85,181.83,19.2482]
[1722027574636,1.10194973,181.91,181.83,26.8386]
[1722027574963,13.09,181.88,181.84,5.4991]
[1722027575262,13.09,181.86,181.84,5.4991]
[1722027577156,58.09,181.87,181.84,5.4991]
[1722027578463,5.74742156,181.94,181.85,13.7469]
[1722027578763,14.84214973,181.95,181.87,5.4983]
[1722027578764,13.09,181.9,181.87,5.4983]
[1722027578958,45.0,181.89,181.87,5.4983]
[1722027579957,18.5873,181.91,181.87,5.4983]
[1722027580143,58.09,181.9,181.86,5.4986]
[1722027580466,5.4969,181.92,181.87,1.099567]
[1722027580636,18.5869,181.92,181.87,1.099567]
[1722027580833,18.5869,181.92,181.86,13.09]
[1722027581147,13.09,181.91,181.86,13.09]
[1722027581447,13.09,181.91,181.85,26.8369]
[1722027582065,13.09,181.91,181.88,5.498]
[1722027582449,13.09,181.91,181.87,5.4983]
[1722027582968,5.4966,181.93,181.89,5.4977]
[1722027583167,13.09,181.93,181.89,5.4977]
[1722027583670,18.5866,181.93,181.89,5.4977]
[1722027583866,18.5866,181.93,181.88,20.34077426]
[1722027584162,18.5866,181.93,181.88,19.2432]
[1722027585040,13.09,181.93,181.88,13.7452]
[1722027585241,13.09,181.92,181.88,13.7452]
[1722027586141,13.09,181.92,181.88,19.2433]
[1722027586770,13.09,181.92,181.89,5.4978]
[1722027587348,5.4968,181.93,181.89,5.4978]
[1722027587558,13.09,181.92,181.89,5.4978]
[1722027591069,13.09,181.92,181.89,6.59720243]
[1722027591465,13.09,181.91,181.88,13.7452]
[1722027591661,58.09,181.91,181.88,13.7452]
[1722027591848,13.09,181.91,181.88,19.2431]
[1722027592048,5.4966,181.93,181.88,19.2431]
[1722027592360,58.09,181.92,181.88,19.2431]
[1722027594258,13.09,181.9,181.88,13.7452]
[1722027594457,13.09,181.89,181.86,5.4986]
[1722027595272,13.09,181.87,181.86,5.4986]
[1722027595477,13.09,181.87,181.83,21.5137]
[1722027595680,13.09,181.87,181.84,5.4992]
[1722027596176,13.09,181.88,181.85,5.4989]
[1722027596358,45.0,181.87,181.85,5.4989]
[1722027596560,13.09,181.88,181.85,5.4989]
[1722027596753,13.09,181.89,181.87,5.4984]
[1722027598273,5.497,181.92,181.87,5.4984]
[1722027598578,13.09,181.89,181.87,5.4984]
[1722027598947,13.09,181.88,181.86,19.245]
[1722027599154,13.09,181.88,181.84,5.4992]
[1722027599347,45.0,181.87,181.84,5.4992]
[1722027599845,13.09,181.88,181.86,5.4987]
[1722027600550,13.09,181.88,181.87,5.4984]
[1722027600766,13.09,181.88,181.85,19.2457]
[1722027601078,13.09,181.88,181.86,5.4986]
[1722027601292,45.0,181.87,181.85,19.2459]
[1722027604552,58.09,181.87,181.85,13.747]
[1722027604888,41.6183,181.95,181.85,13.747]
[1722027604889,13.09,181.89,181.85,13.747]
[1722027605052,13.09,181.89,181.87,5.4983]
[1722027605254,13.09,181.9,181.87,5.4983]
[1722027605451,13.09,181.89,181.87,5.4983]
[1722027605786,6.59904973,181.92,181.87,5.4983]
[1722027605981,13.09,181.89,181.87,5.4983]
[1722027608582,5.4971,181.92,181.88,5.4981]
[1722027608878,13.09,181.9,181.88,5.4981]
[1722027609060,58.09,181.89,181.87,5.4983]
[1722027609261,13.09,181.89,181.87,5.4983]
[1722027609678,13.09,181.88,181.85,13.747]
[1722027609857,58.09,181.87,181.85,13.747]
[1722027610965,58.09,181.87,181.85,19.2459]
[1722027611864,58.09,181.87,181.81,42.34827616]
[1722027612063,58.09,181.87,181.84,5.4992]
[1722027612384,45.0,181.87,181.85,5.4987]
[1722027612689,58.09,181.87,181.85,5.4987]
[1722027613184,5.4969,181.92,181.85,13.747]
[1722027613386,13.09,181.9,181.89,5.4978]
[1722027613582,13.09,181.9,181.88,5.498]
[1722027615175,5.4966,181.93,181.89,5.4978]
[1722027615368,13.09,181.9,181.89,5.4978]
[1722027615568,58.09,181.9,181.89,5.4978]
[1722027618798,41.9272,182.0,181.87,13.09]
[1722027618968,13.09,181.95,181.94,5.4962]
[1722027619168,13.09,181.95,181.91,14.84188808]
[1722027619467,13.09,181.95,181.93,5.4963]
[1722027620196,13.09,181.94,181.92,5.4968]
[1722027620373,13.09,181.93,181.92,5.4968]
[1722027620568,13.09,181.93,181.91,19.2397]
[1722027621291,13.09,181.93,181.92,5.4969]
[1722027621473,13.09,181.93,181.91,19.2398]
[1722027622390,13.09,181.94,181.91,19.2398]
[1722027623677,13.09,181.94,181.92,5.4968]
[1722027627007,1.10194973,181.93,181.91,19.2397]
[1722027627181,59.19194973,181.93,181.91,19.2397]
[1722027627499,13.09,181.92,181.91,19.2397]
[1722027628811,58.09,181.92,181.91,19.2397]
[1722027629497,58.09,181.92,181.91,13.7426]
[1722027631601,58.09,181.92,181.9,5.4974]
[1722027631777,58.09,181.91,181.9,5.4974]
[1722027634502,45.0,181.91,181.9,5.4974]
[1722027634723,13.09,181.92,181.91,5.4972]
[1722027634895,13.09,181.93,181.91,5.4972]
[1722027636835,13.09,181.94,181.91,5.4972]
[1722027637106,45.0,181.93,181.91,5.4972]
[1722027639883,58.09,181.94,181.91,5.4972]
[1722027640929,58.09,181.94,181.9,19.2407]
[1722027643005,1.10194973,181.93,181.9,18.7407]
[1722027643500,1.10194973,181.93,181.9,13.2433]
[1722027643699,50.4963,181.94,181.9,18.7407]
[1722027643915,45.0,181.94,181.91,5.4971]
[1722027644127,13.09,181.94,181.91,5.4971]
[1722027644434,45.0,181.93,181.91,5.4971]
[1722027644923,45.0,181.93,181.9,18.7407]
[1722027645709,5.4971,181.92,181.87,13.7458]
[1722027645915,58.09,181.91,181.87,13.7458]
[1722027646101,13.09,181.91,181.88,5.498]
[1722027646636,13.09,181.92,181.88,5.498]
[1722027646811,45.0,181.91,181.88,5.498]
[1722027647725,58.09,181.91,181.88,5.498]
[1722027649231,45.0,181.91,181.88,5.498]
[1722027649634,58.09,181.91,181.88,5.498]
[1722027650125,13.09,181.9,181.87,13.7458]
[1722027650431,45.0,181.89,181.87,13.7458]
[1722027650599,45.0,181.89,181.85,5.499]
[1722027650801,13.09,181.88,181.85,5.499]
[1722027650998,45.0,181.87,181.85,5.499]
[1722027651232,58.09,181.89,181.86,5.4987]
[1722027653009,58.09,181.89,181.85,5.4989]
[1722027653207,58.09,181.89,181.86,5.4986]
[1722027661233,1.10194973,181.88,181.86,5.4986]
[1722027661442,14.19194973,181.87,181.83,13.7484]
[1722027661735,58.09,181.86,181.83,13.7484]
[1722027661939,1.10194973,181.85,181.83,13.7484]
[1722027662817,58.09,181.86,181.83,13.7484]
[1722027663022,58.09,181.86,181.84,5.4992]
[1722027664532,1.10194973,181.85,181.84,5.4992]
[1722027665536,58.09,181.86,181.84,5.4992]
[1722027665941,100.0,181.89,181.85,5.499]
[1722027666122,13.09,181.86,181.84,5.4992]
[1722027666447,45.0,181.88,181.86,5.4984]
[1722027666739,58.09,181.88,181.85,19.246]
[1722027667717,59.19194973,181.88,181.85,19.246]
[1722027668039,46.10194973,181.88,181.85,19.246]
[1722027668235,58.09,181.88,181.85,19.246]
[1722027669545,59.19194973,181.88,181.85,19.246]
[1722027670220,59.19194973,181.88,181.85,13.747]
[1722027673246,64.69014973,181.88,181.84,5.4992]
[1722027673420,13.09,181.87,181.84,5.4992]
[1722027674222,13.09,181.86,181.84,5.4992]
[1722027675243,14.19194973,181.87,181.84,5.4992]
[1722027676645,13.09,181.85,181.79,13.7518]
[1722027676945,13.09,181.81,181.79,19.2525]
[1722027678444,13.09,181.82,181.79,19.2525]
[1722027679249,13.09,181.81,181.79,19.2525]
[1722027679451,13.09,181.8,181.77,5.5014]
[1722027679636,13.09,181.78,181.76,13.754]
[1722027679831,13.09,181.78,181.76,19.2556]
[1722027680549,5.4996,181.83,181.78,5.5011]
[1722027680760,13.09,181.8,181.78,5.5011]
[1722027681134,13.09,181.8,181.79,5.5008]
[1722027681335,13.09,181.8,181.76,13.754]
[1722027681725,13.09,181.8,181.78,5.5011]
[1722027683123,13.09,181.8,181.77,5.5014]
[1722027683329,13.09,181.79,181.77,5.5014]
[1722027684374,13.09,181.78,181.76,13.754]
[1722027685170,13.09,181.79,181.77,5.5012]
[1722027687562,13.09,181.79,181.76,19.2556]
[1722027693256,45.0,181.78,181.77,5.5014]
[1722027693447,45.0,181.78,181.76,19.2556]
[1722027694738,45.0,181.78,181.76,13.754]
[1722027695056,58.09,181.78,181.76,13.754]
[1722027696041,58.09,181.78,181.76,19.2557]
[1722027698066,20.0,181.87,181.78,13.7522]
[1722027698365,13.09,181.8,181.79,5.5008]
[1722027698545,5.499,181.85,181.8,5.5004]
[1722027698753,13.09,181.81,181.8,5.5004]
[1722027699362,58.09,181.81,181.8,5.5004]
[1722027699747,58.09,181.81,181.78,19.253]
[1722027700348,13.09,181.8,181.78,19.253]
[1722027701338,58.09,181.81,181.78,19.253]
[1722027701974,13.09,181.81,181.79,5.5007]
[1722027702968,5.4996,181.83,181.79,5.5007]
[1722027703171,13.09,181.81,181.79,5.5007]
[1722027704475,13.09,181.81,181.78,13.7522]
[1722027705173,45.0,181.82,181.79,5.5008]
[1722027705358,58.09,181.82,181.79,5.5008]
[1722027706591,45.0,181.82,181.79,5.5008]
[1722027706998,13.09,181.82,181.79,5.5008]
[1722027707148,45.0,181.81,181.79,5.5008]
[1722027709412,45.0,181.81,181.78,19.2533]
[1722027709776,45.0,181.81,181.73,6.0281]
[1722027709777,13.09,181.79,181.75,13.7549]
[1722027710078,13.09,181.78,181.75,13.7549]
[1722027710958,13.09,181.77,181.75,13.7549]
[1722027712175,13.09,181.77,181.75,19.2569]
[1722027713679,13.09,181.76,181.69,5.5036]
[1722027713986,21.10194973,181.79,181.69,5.5036]
[1722027713987,13.09,181.72,181.7,5.5035]
[1722027715988,45.0,181.75,181.71,13.7575]
[1722027716187,13.09,181.77,181.75,5.502]
[1722027718310,13.09,181.77,181.74,5.5022]
[1722027719114,67.6518,181.7,181.66,16.22660011]
[1722027719319,67.6518,181.7,181.69,13.09]
[1722027720415,67.6518,181.7,181.69,32.3535]
[1722027721816,67.6518,181.7,181.69,19.2635]
[1722027730902,67.6518,181.7,181.66,13.7616]
[1722027731104,13.09,181.69,181.67,5.5044]
[1722027734233,14.19194973,181.69,181.67,5.5044]
[1722027734441,45.0,181.68,181.67,5.5044]
[1722027734912,45.0,181.68,181.67,5.0044]
[1722027744419,59.19194973,181.68,181.62,13.7648]
[1722027744620,13.09,181.65,181.64,5.5053]
[1722027745715,13.09,181.65,181.62,19.2705]
[1722027746429,45.0,181.64,181.62,19.2705]
[1722027747435,13.09,181.64,181.62,19.2705]
[1722027747621,13.09,181.64,181.62,13.7648]
[1722027748139,58.09,181.65,181.62,19.2707]
[1722027750452,13.09,181.64,181.62,13.7648]
[1722027750743,13.09,181.63,181.59,19.2737]
[1722027751040,13.09,181.62,181.59,19.2737]
[1722027752218,45.0,181.65,181.63,5.5056]
[1722027752425,45.0,181.65,181.62,5.5059]
[1722027752834,5.5053,181.64,181.61,13.7651]
[1722027753042,45.0,181.63,181.6,5.5065]
[1722027753522,13.09,181.64,181.61,5.5062]
[1722027754245,13.09,181.65,181.62,5.5059]
[1722027754424,45.0,181.64,181.62,5.5059]
[1722027755145,45.0,181.64,181.6,14.86735155]
[1722027755146,45.0,181.64,181.61,5.5062]
[1722027755333,50.5054,181.64,181.6,13.7661]
[1722027755538,45.0,181.64,181.6,19.2724]
[1722027755738,47.27827855,181.6,181.59,13.09]
[1722027756853,47.27827855,181.6,181.59,32.3641]
[1722027757734,47.27827855,181.6,181.59,31.8641]
[1722027757943,47.27827855,181.6,181.59,19.2741]
[1722027758444,47.27827855,181.6,181.59,32.3641]
[1722027777140,47.27827855,181.6,181.59,19.2741]
[1722027784764,47.27827855,181.6,181.59,33.46491069]
[1722027787062,47.27827855,181.6,181.59,32.3641]
[1722027789358,47.27827855,181.6,181.59,19.2741]
[1722027789651,47.27827855,181.6,181.59,32.3641]
[1722027790272,47.27827855,181.6,181.59,19.2741]
[1722027790457,47.27827855,181.6,181.59,32.3641]
[1722027798159,47.27827855,181.6,181.59,19.2741]
[1722027798376,47.27827855,181.6,181.59,32.3641]
[1722027799586,47.27827855,181.6,181.59,19.2741]
[1722027807885,47.27827855,181.6,181.59,32.3641]
[1722027809067,47.27827855,181.6,181.59,19.2741]
[1722027815602,47.27827855,181.6,181.59,32.3641]
[1722027817800,47.27827855,181.6,181.59,19.2741]
[1722027820391,47.27827855,181.6,181.59,32.3641]
[1722027829892,47.27827855,181.6,181.59,19.2741]
[1722027832811,47.27827855,181.6,181.58,5.5069]
[1722027833027,47.27827855,181.6,181.59,5.5069]
[1722027833518,47.27827855,181.6,181.57,5.5073]
[1722027833699,59.4668444,181.59,181.56,19.277]
[1722027834123,58.09,181.59,181.56,19.277]
[1722027834616,58.09,181.59,181.56,13.7693]
[1722027834819,58.09,181.59,181.56,19.277]
[1722027835033,13.09,181.57,181.53,13.7717]
[1722027835320,13.09,181.57,181.53,19.2803]
[1722027835321,45.0,181.56,181.53,19.2803]
[1722027835699,58.09,181.56,181.53,19.2803]
[1722027836320,45.0,181.56,181.53,19.2803]
[1722027836510,15.6701,181.59,181.53,13.7717]
[1722027836822,58.09,181.58,181.56,5.5077]
[1722027837221,15.6701,181.59,181.56,5.5077]
[1722027837809,47.27827855,181.6,181.58,26.8577]
[1722027838001,47.27827855,181.6,181.59,13.09]
[1722027838725,47.27827855,181.6,181.59,18.5969]
[1722027840622,47.27827855,181.6,181.59,5.5069]
[1722027841109,47.27827855,181.6,181.58,19.2748]
[1722027841515,47.27827855,181.6,181.59,5.5069]
[1722027842420,47.27827855,181.6,181.58,19.2749]
[1722027844130,47.27827855,181.6,181.59,5.5069]
[1722027845128,47.27827855,181.6,181.59,18.5969]
[1722027855202,47.27827855,181.6,181.59,19.69747412]
[1722027856527,47.27827855,181.6,181.59,18.5969]
[1722027868132,47.27827855,181.6,181.59,19.69723595]
[1722027868950,47.27827855,181.6,181.59,6.60723595]
[1722027869326,47.27827855,181.6,181.59,18.5969]
[1722027874629,47.27827855,181.6,181.59,19.69724513]
[1722027883755,47.27827855,181.6,181.59,18.5969]
[1722027896363,47.27827855,181.6,181.59,19.69728279]
[1722027903343,47.27827855,181.6,181.59,5.5069]
[1722027903759,47.27827855,181.6,181.59,18.5969]
[1722027906380,53.49667855,181.6,181.59,5.5069]
[1722027914471,66.58667855,181.6,181.58,19.2749]
[1722027914767,76.05979289,181.59,181.58,13.7677]
[1722027914962,74.6829,181.59,181.57,5.5075]
[1722027916061,74.6829,181.59,181.56,5.5077]
[1722027919168,1.37701136,181.58,181.56,5.5077]
[1722027919561,1.37701063,181.57,181.56,5.5077]
[1722027919870,74.6829,181.59,181.56,5.5077]
[1722027921280,61.5929,181.59,181.56,5.5077]
[1722027925286,62.96991102,181.59,181.56,5.5077]
[1722027925461,61.5929,181.59,181.57,5.5073]
[1722027927179,47.27827855,181.6,181.59,5.5069]
[1722027927382,47.27827855,181.6,181.59,18.5969]
[1722027927759,47.27827855,181.6,181.59,5.5069]
[1722027928082,37.27280748,181.6,181.59,18.5969]
[1722027928251,34.51494758,181.6,181.59,18.5969]
[1722027933357,34.51494758,181.6,181.59,19.69723881]
[1722027933563,17.2385625,181.72,181.68,5.5041]
[1722027933864,15.8621,181.72,181.68,5.5041]
[1722027934991,45.0,181.71,181.68,5.5041]
[1722027935383,45.0,181.71,181.67,26.8511]
[1722027935565,1.37604503,181.7,181.67,32.3554]
[1722027935889,13.09,181.68,181.64,5.5051]
[1722027936065,13.09,181.68,181.63,13.09]
[1722027936262,13.09,181.69,181.64,13.09]
[1722027936487,45.0,181.68,181.64,13.09]
[1722027936790,45.0,181.68,181.63,13.09]
[1722027936990,45.0,181.68,181.65,5.505]
[1722027937369,45.0,181.69,181.65,18.595]
[1722027939277,50.5038,181.69,181.65,18.595]
[1722027939595,15.8621,181.72,181.67,13.09]
[1722027939889,50.5035,181.71,181.67,13.09]
[1722027940086,50.5035,181.71,181.66,5.5045]
[1722027940391,5.5036,181.7,181.66,13.09]
[1722027940566,6.87966705,181.7,181.66,13.09]
[1722027941602,1.37606705,181.7,181.66,18.5947]
[1722027942101,50.5033,181.71,181.66,18.5947]
[1722027942397,1.3760459,181.7,181.66,18.5947]
[1722027943801,6.8796459,181.7,181.66,18.5947]
[1722027944003,6.8796459,181.7,181.66,13.09]
[1722027944373,5.5036,181.7,181.66,13.09]
[1722027944896,6.33087685,181.7,181.66,13.09]
[1722027946600,5.5036,181.7,181.66,13.09]
[1722027946899,5.5039,181.69,181.66,13.09]
[1722027947077,45.0,181.68,181.64,13.09]
[1722027947285,58.09,181.69,181.63,13.09]
[1722027947884,5.5043,181.68,181.64,13.09]
[1722027949511,5.5043,181.68,181.64,18.5953]
[1722027950403,5.5043,181.68,181.64,13.09]
[1722027950607,51.33177685,181.67,181.62,13.09]
[1722027951201,13.09,181.66,181.63,5.5056]
[1722027951404,0.82727685,181.65,181.63,5.5056]
[1722027952398,0.82727685,181.66,181.63,5.5056]
[1722027953901,45.0,181.67,181.64,5.5052]
[1722027960910,0.82727685,181.66,181.64,5.5052]
[1722027961107,0.82727685,181.66,181.63,19.2694]
[1722027962013,0.82727685,181.66,181.64,5.5053]
[1722027965023,58.09,181.67,172.0,1.936392]
[1722027965309,1.37639265,181.66,181.62,13.09]
[1722027965510,1.37639265,181.66,181.61,13.09]
[1722027968616,50.5044,181.67,181.61,13.09]
[1722027968792,13.09,181.66,181.6,13.09]
[1722027968993,13.09,181.66,181.55,15.1317]
[1722027968994,59.46649172,181.65,181.59,13.09]
[1722027969220,14.46657543,181.64,181.58,13.09]
[1722027969608,58.09,181.63,181.57,13.09]
[1722027969815,13.09,181.62,181.57,13.09]
[1722027969992,13.09,181.62,181.51,15.1317]
[1722027970312,14.46677733,181.61,181.55,13.09]
[1722027970696,1.37682599,181.6,181.55,13.09]
[1722027971535,13.09,181.61,181.55,13.09]
[1722027974408,1.37678835,181.6,181.55,13.09]
[1722027974607,14.46678835,181.6,181.55,13.09]
[1722027975423,14.46693545,181.59,181.53,13.09]
[1722027976302,13.09,181.59,181.53,13.09]
[1722027977509,1.37696025,181.58,181.53,13.09]
[1722027977706,1.37696025,181.58,181.54,13.09]
[1722027979108,13.09,181.59,181.54,13.09]
[1722027979300,28.0982,181.6,181.54,13.09]
[1722027979504,45.0,181.59,181.54,13.09]
[1722027981041,1.3769667,181.58,181.54,13.09]
[1722027981631,45.0,181.59,181.54,13.09]
[1722027981834,1.37696875,181.58,181.54,13.09]
[1722027983031,1.37699713,181.57,181.47,2.17722421]
[1722027983233,1.37699713,181.57,181.47,20.0]
[1722027983534,58.09,181.59,181.53,13.09]
[1722027985134,13.09,181.57,181.47,20.0]
[1722027985433,13.09,181.57,181.45,50.37400916]
[1722027985434,13.09,181.55,181.49,13.09]
[1722027985729,64.4311,181.56,181.5,13.09]
[1722027985911,64.4311,181.56,181.51,13.09]
[1722027986316,51.3411,181.56,181.46,1.10183847]
[1722027986539,51.3411,181.56,181.51,13.09]
[1722027987325,51.3411,181.56,181.52,13.09]
[1722027988334,51.3411,181.56,181.51,13.09]
[1722027988540,6.3411,181.56,181.52,13.09]
[1722027988713,6.3411,181.56,181.46,1.10176403]
[1722027988919,13.09,181.55,181.49,13.09]
[1722027989417,6.3411,181.56,181.51,13.09]
[1722027989621,6.3411,181.56,181.52,13.09]
[1722027991136,6.3411,181.56,181.46,1.10177656]
[1722027991345,6.3411,181.56,181.46,1.10179833]
[1722027991556,6.3411,181.56,181.53,13.09]
[1722027991835,6.3411,181.56,181.47,0.34]
[1722027991836,34.378,181.6,181.55,13.09]
[1722027992014,21.288,181.6,181.55,13.09]
[1722027992214,21.288,181.6,181.56,13.09]
[1722027993145,2.70054801,181.67,181.59,13.09]
[1722027993146,6.2798,181.64,181.59,13.09]
[1722027993440,6.2798,181.64,181.6,13.09]
[1722027993827,11.7852,181.64,181.6,13.09]
[1722027994028,11.7852,181.64,181.54,1.10128602]
[1722027994029,11.7852,181.64,181.59,13.09]
[1722027994225,13.09,181.62,181.56,13.09]
[1722027994423,7.6566842,181.64,181.55,13.09]
[1722027994630,13.09,181.61,181.55,13.09]
[1722027995530,1.37687823,181.6,181.55,13.09]
[1722027998321,45.0,181.63,181.56,13.09]
[1722027998523,6.2798,181.64,181.6,13.09]
[1722027998744,7.65638223,181.64,181.6,13.09]
[1722027999126,6.2798,181.64,181.6,13.09]
[1722027999337,6.2798,181.64,181.61,13.09]
[1722027999538,15.8956,181.65,181.62,13.09]
[1722027999844,22.4166,181.69,181.64,13.09]
[1722028001242,45.0,181.68,181.64,13.09]
[1722028001432,22.4166,181.69,181.65,13.09]
[1722028002431,22.4166,181.69,181.66,13.09]
[1722028002632,6.1561,181.69,181.66,13.09]
[1722028002836,13.09,181.71,181.66,13.09]
[1722028003354,18.5932,181.72,181.66,13.09]
[1722028003654,13.09,181.71,181.66,13.09]
[1722028003954,45.0,181.7,181.66,13.09]
[1722028009026,45.0,181.7,181.67,13.09]
[1722028009429,45.0,181.71,181.67,13.09]
[1722028009676,45.0,181.71,181.66,13.09]
[1722028010034,45.0,181.71,181.67,13.09]
[1722028011737,45.0,181.71,181.66,13.09]
[1722028013329,63.5932,181.71,181.66,13.09]
[1722028013537,58.09,181.71,181.66,13.09]
[1722028015967,58.09,181.71,181.65,13.09]
[1722028016167,58.09,181.71,181.62,52.36]
[1722028016168,45.0,181.71,181.62,52.36]
[1722028016375,58.09,181.72,181.63,1.10086863]
[1722028017570,45.0,181.72,181.69,13.09]
[1722028018271,21.2835,181.78,181.69,13.09]
[1722028018469,21.2835,181.78,181.71,13.09]
[1722028018470,18.5917,181.77,181.71,13.09]
[1722028019468,18.5917,181.77,181.63,1.10086863]
[1722028019469,18.5918,181.76,181.7,13.09]
[1722028019977,45.0,181.75,181.7,13.09]
[1722028020349,13.09,181.76,181.7,13.09]
[1722028020549,13.09,181.77,181.71,13.09]
[1722028020871,13.09,181.76,181.7,13.09]
[1722028021273,1.3757401,181.75,181.7,13.09]
[1722028021953,45.0,181.75,181.7,13.09]
[1722028022351,45.0,181.76,181.71,13.09]
[1722028024550,58.09,181.76,181.7,13.09]
[1722028025373,45.0,181.76,181.71,13.09]
[1722028028469,58.09,181.76,181.7,13.09]
[1722028028685,19.96774763,181.75,181.69,13.09]
[1722028028856,58.09,181.74,181.68,13.09]
[1722028029055,1.37589655,181.73,181.68,13.09]
[1722028032158,21.2835,181.78,181.71,13.09]
[1722028032477,58.09,181.77,181.71,13.09]
[1722028035388,13.09,181.76,181.7,13.09]
[1722028035592,46.37571958,181.75,181.7,13.09]